[Event "Titled Tuesday Blitz July 25 Early 2023"]
[White "Kayis, Gulcan Sena"]
[Black "Richter, Nils"]
[WhiteFideId "34553045"]
[BlackFideId "12990809"]
[WhiteElo "2401"]
[BlackElo "2573"]
[Result "0-1"]
[Round "9"]
[TimeControl "180+2"]
[Date "2023.07.25"]
[WhiteClock "0:00:22"]
[BlackClock "0:00:29"]
[Board "78"]

1. e4 {[%clk 0:03:00]}  Nc6 {[%clk 0:02:56]} 2. Nc3 {[%clk 0:03:00]}  d6 {[%clk 0:02:53]} 3. d4 {[%clk 0:02:59]}  Nf6 {[%clk 0:02:53]} 4. Nf3 {[%clk 0:02:59]}  g6 {[%clk 0:02:53]} 5. Be3 {[%clk 0:02:57]}  Bg7 {[%clk 0:02:53]} 6. Bc4 {[%clk 0:02:55]}  O-O {[%clk 0:02:53]} 7. O-O {[%clk 0:02:55]}  Bg4 {[%clk 0:02:42]} 8. h3 {[%clk 0:02:54]}  Bxf3 {[%clk 0:02:40]} 9. Qxf3 {[%clk 0:02:54]}  Nd7 {[%clk 0:02:40]} 10. Rad1 {[%clk 0:02:52]}  e5 {[%clk 0:02:40]} 11. d5 {[%clk 0:02:51]}  Ne7 {[%clk 0:02:39]} 12. Bb3 {[%clk 0:02:50]}  h6 {[%clk 0:02:36]} 13. Qe2 {[%clk 0:02:49]}  f5 {[%clk 0:02:36]} 14. f4 {[%clk 0:02:48]}  exf4 {[%clk 0:02:36]} 15. Bxf4 {[%clk 0:02:48]}  g5 {[%clk 0:02:37]} 16. Bd2 {[%clk 0:02:44]}  f4 {[%clk 0:02:37]} 17. Kh2 {[%clk 0:02:41]}  Ng6 {[%clk 0:02:36]} 18. Be1 {[%clk 0:02:27]}  Be5 {[%clk 0:02:35]} 19. Kh1 {[%clk 0:02:26]}  Nf6 {[%clk 0:02:35]} 20. Nb5 {[%clk 0:02:21]}  Rf7 {[%clk 0:02:24]} 21. c3 {[%clk 0:02:20]}  h5 {[%clk 0:02:15]} 22. Nd4 {[%clk 0:02:15]}  g4 {[%clk 0:02:15]} 23. Ne6 {[%clk 0:02:10]}  Qe7 {[%clk 0:02:13]} 24. Bc2 {[%clk 0:02:08]}  Rh7 {[%clk 0:02:07]} 25. Kg1 {[%clk 0:02:05]}  Kh8 {[%clk 0:02:00]} 26. a4 {[%clk 0:01:47]}  Rg8 {[%clk 0:01:54]} 27. Kh1 {[%clk 0:01:47]}  gxh3 {[%clk 0:01:31]} 28. gxh3 {[%clk 0:01:47]}  h4 {[%clk 0:01:32]} 29. Rg1 {[%clk 0:01:33]}  Nh5 {[%clk 0:01:30]} 30. Ng5 {[%clk 0:01:29]}  Rh6 {[%clk 0:01:25]} 31. Nf3 {[%clk 0:01:17]}  Ng3+ {[%clk 0:01:24]} 32. Bxg3 {[%clk 0:01:17]}  hxg3 {[%clk 0:01:25]} 33. Kg2 {[%clk 0:01:15]}  Rf8 {[%clk 0:01:19]} 34. Rh1 {[%clk 0:01:13]}  Kg7 {[%clk 0:01:04]} 35. Rdf1 {[%clk 0:01:11]}  Rfh8 {[%clk 0:01:02]} 36. Bd3 {[%clk 0:00:57]}  Qd7 {[%clk 0:01:01]} 37. h4 {[%clk 0:00:57]}  Rxh4 {[%clk 0:00:56]} 38. Rxh4 {[%clk 0:00:55]}  Rxh4 {[%clk 0:00:36]} 39. Nxh4 {[%clk 0:00:45]}  Nxh4+ {[%clk 0:00:37]} 40. Kg1 {[%clk 0:00:44]}  Qh3 {[%clk 0:00:37]} 41. Rf3 {[%clk 0:00:22]}  Qg4 {[%clk 0:00:29]} 0-1


[Site "https://www.chess.com"]

[Event "Titled Tuesday Blitz July 25 Early 2023"]
[White "LLariMarc"]
[Black "Eynullayev, Altay"]
[BlackFideId "13413562"]
[WhiteElo "2384"]
[BlackElo "2563"]
[Result "0-1"]
[Round "9"]
[TimeControl "180+2"]
[Date "2023.07.25"]
[WhiteClock "0:02:07"]
[BlackClock "0:01:56"]
[Board "79"]

1. d4 {[%clk 0:03:00]}  Nf6 {[%clk 0:02:59]} 2. Nf3 {[%clk 0:03:01]}  e6 {[%clk 0:02:59]} 3. Bg5 {[%clk 0:03:01]}  d5 {[%clk 0:02:57]} 4. e3 {[%clk 0:03:01]}  Be7 {[%clk 0:02:57]} 5. Nbd2 {[%clk 0:03:01]}  O-O {[%clk 0:02:58]} 6. Bd3 {[%clk 0:03:02]}  b6 {[%clk 0:02:58]} 7. O-O {[%clk 0:03:02]}  Ba6 {[%clk 0:02:58]} 8. Bxa6 {[%clk 0:03:01]}  Nxa6 {[%clk 0:02:59]} 9. Re1 {[%clk 0:03:02]}  h6 {[%clk 0:02:56]} 10. Bxf6 {[%clk 0:03:02]}  Bxf6 {[%clk 0:02:57]} 11. c3 {[%clk 0:03:02]}  c5 {[%clk 0:02:57]} 12. Qe2 {[%clk 0:03:01]}  Nc7 {[%clk 0:02:56]} 13. Rad1 {[%clk 0:03:00]}  Re8 {[%clk 0:02:50]} 14. dxc5 {[%clk 0:03:00]}  bxc5 {[%clk 0:02:49]} 15. e4 {[%clk 0:03:01]}  Rb8 {[%clk 0:02:47]} 16. e5 {[%clk 0:02:57]}  Be7 {[%clk 0:02:46]} 17. b3 {[%clk 0:02:58]}  Qc8 {[%clk 0:02:42]} 18. Qd3 {[%clk 0:02:58]}  Qa6 {[%clk 0:02:42]} 19. Qxa6 {[%clk 0:02:57]}  Nxa6 {[%clk 0:02:43]} 20. c4 {[%clk 0:02:58]}  Nc7 {[%clk 0:02:40]} 21. cxd5 {[%clk 0:02:55]}  exd5 {[%clk 0:02:39]} 22. Rc1 {[%clk 0:02:55]}  Red8 {[%clk 0:02:39]} 23. Rc2 {[%clk 0:02:53]}  Ne6 {[%clk 0:02:38]} 24. Rec1 {[%clk 0:02:52]}  a5 {[%clk 0:02:38]} 25. a4 {[%clk 0:02:51]}  Rb4 {[%clk 0:02:38]} 26. Kf1 {[%clk 0:02:51]}  g5 {[%clk 0:02:37]} 27. h3 {[%clk 0:02:49]}  h5 {[%clk 0:02:36]} 28. Re1 {[%clk 0:02:47]}  Kg7 {[%clk 0:02:36]} 29. Ng1 {[%clk 0:02:43]}  Kg6 {[%clk 0:02:35]} 30. Ne2 {[%clk 0:02:43]}  g4 {[%clk 0:02:21]} 31. hxg4 {[%clk 0:02:41]}  hxg4 {[%clk 0:02:19]} 32. g3 {[%clk 0:02:42]}  Bg5 {[%clk 0:02:15]} 33. Nc1 {[%clk 0:02:35]}  Nd4 {[%clk 0:02:07]} 34. Rb2 {[%clk 0:02:34]}  Bxd2 {[%clk 0:02:08]} 35. Rxd2 {[%clk 0:02:34]}  Nf3 {[%clk 0:02:08]} 36. Rc2 {[%clk 0:02:31]}  Nxe1 {[%clk 0:02:08]} 37. Kxe1 {[%clk 0:02:31]}  c4 {[%clk 0:02:08]} 38. bxc4 {[%clk 0:02:31]}  Rxc4 {[%clk 0:02:08]} 39. Kd2 {[%clk 0:02:31]}  Rdc8 {[%clk 0:02:08]} 40. Rxc4 {[%clk 0:02:30]}  Rxc4 {[%clk 0:02:09]} 41. Nd3 {[%clk 0:02:29]}  Rxa4 {[%clk 0:02:09]} 42. Kc3 {[%clk 0:02:28]}  Ra3+ {[%clk 0:02:05]} 43. Kd4 {[%clk 0:02:28]}  a4 {[%clk 0:02:04]} 44. Nf4+ {[%clk 0:02:27]}  Kg7 {[%clk 0:02:01]} 45. Nxd5 {[%clk 0:02:27]}  Rf3 {[%clk 0:02:01]} 46. Kc4 {[%clk 0:02:22]}  a3 {[%clk 0:02:01]} 47. Nb4 {[%clk 0:02:18]}  Rxf2 {[%clk 0:01:59]} 48. Kb3 {[%clk 0:02:18]}  Rf3+ {[%clk 0:01:57]} 49. Ka2 {[%clk 0:02:17]}  Rxg3 {[%clk 0:01:58]} 50. Nd5 {[%clk 0:02:07]}  Rf3 {[%clk 0:01:56]} 0-1


[Site "https://www.chess.com"]

[Event "Titled Tuesday Blitz July 25 Early 2023"]
[White "kiwibobo"]
[Black "Yurovskykh, Oleksandr"]
[BlackFideId "14134020"]
[WhiteElo "2349"]
[BlackElo "2562"]
[Result "0-1"]
[Round "9"]
[TimeControl "180+2"]
[Date "2023.07.25"]
[WhiteClock "0:00:00"]
[BlackClock "0:00:07"]
[Board "80"]

1. e4 {[%clk 0:03:00]}  e6 {[%clk 0:02:54]} 2. d4 {[%clk 0:03:00]}  d5 {[%clk 0:02:51]} 3. Nd2 {[%clk 0:03:00]}  dxe4 {[%clk 0:02:51]} 4. Nxe4 {[%clk 0:03:00]}  Bd7 {[%clk 0:02:52]} 5. Nf3 {[%clk 0:02:59]}  Bc6 {[%clk 0:02:52]} 6. Bd3 {[%clk 0:02:58]}  Nd7 {[%clk 0:02:52]} 7. O-O {[%clk 0:02:58]}  Ngf6 {[%clk 0:02:52]} 8. Ned2 {[%clk 0:02:58]}  Be7 {[%clk 0:02:47]} 9. Nc4 {[%clk 0:02:57]}  O-O {[%clk 0:02:47]} 10. Na5 {[%clk 0:02:57]}  Rb8 {[%clk 0:01:56]} 11. Nxc6 {[%clk 0:02:54]}  bxc6 {[%clk 0:01:56]} 12. c3 {[%clk 0:02:50]}  c5 {[%clk 0:01:56]} 13. Be3 {[%clk 0:02:38]}  cxd4 {[%clk 0:01:56]} 14. Nxd4 {[%clk 0:02:37]}  Ne5 {[%clk 0:01:49]} 15. Be2 {[%clk 0:01:56]}  Rxb2 {[%clk 0:01:46]} 16. Nb3 {[%clk 0:01:37]}  Qxd1 {[%clk 0:01:04]} 17. Bxd1 {[%clk 0:01:36]}  Nd5 {[%clk 0:01:04]} 18. Bc1 {[%clk 0:01:33]}  Rxb3 {[%clk 0:00:58]} 19. axb3 {[%clk 0:01:24]}  Nd3 {[%clk 0:00:29]} 20. Bd2 {[%clk 0:01:20]}  Bf6 {[%clk 0:00:24]} 21. Rxa7 {[%clk 0:01:18]}  c5 {[%clk 0:00:17]} 22. Bc2 {[%clk 0:01:11]}  N3f4 {[%clk 0:00:15]} 23. c4 {[%clk 0:01:05]}  Ne2+ {[%clk 0:00:13]} 24. Kh1 {[%clk 0:01:06]}  Ne7 {[%clk 0:00:09]} 25. Be3 {[%clk 0:00:56]}  Rc8 {[%clk 0:00:08]} 26. g3 {[%clk 0:00:49]}  Nc6 {[%clk 0:00:08]} 27. Ra4 {[%clk 0:00:44]}  Ned4 {[%clk 0:00:08]} 28. Be4 {[%clk 0:00:43]}  Nb4 {[%clk 0:00:07]} 29. Rfa1 {[%clk 0:00:38]}  Nxb3 {[%clk 0:00:06]} 30. Ra8 {[%clk 0:00:38]}  Rf8 {[%clk 0:00:05]} 31. Rxf8+ {[%clk 0:00:35]}  Kxf8 {[%clk 0:00:06]} 32. Rb1 {[%clk 0:00:33]}  Nd4 {[%clk 0:00:05]} 33. Ra1 {[%clk 0:00:27]}  g6 {[%clk 0:00:02]} 34. Ra8+ {[%clk 0:00:26]}  Ke7 {[%clk 0:00:03]} 35. Ra7+ {[%clk 0:00:25]}  Ke8 {[%clk 0:00:02]} 36. Rc7 {[%clk 0:00:21]}  Be7 {[%clk 0:00:01]} 37. Rb7 {[%clk 0:00:19]}  f5 {[%clk 0:00:02]} 38. Bxd4 {[%clk 0:00:18]}  cxd4 {[%clk 0:00:03]} 39. Bf3 {[%clk 0:00:17]}  Kf7 {[%clk 0:00:03]} 40. Kg2 {[%clk 0:00:17]}  Kf6 {[%clk 0:00:03]} 41. Kf1 {[%clk 0:00:16]}  e5 {[%clk 0:00:03]} 42. Rb6+ {[%clk 0:00:16]}  Kg7 {[%clk 0:00:04]} 43. Bd5 {[%clk 0:00:16]}  e4 {[%clk 0:00:02]} 44. Rb7 {[%clk 0:00:16]}  Kf6 {[%clk 0:00:02]} 45. Ke2 {[%clk 0:00:17]}  d3+ {[%clk 0:00:02]} 46. Kd2 {[%clk 0:00:17]}  Bc5 {[%clk 0:00:01]} 47. Rc7 {[%clk 0:00:15]}  Bd6 {[%clk 0:00:01]} 48. Rd7 {[%clk 0:00:16]}  Ke5 {[%clk 0:00:01]} 49. Rxh7 {[%clk 0:00:15]}  Na6 {[%clk 0:00:01]} 50. Bb7 {[%clk 0:00:12]}  Bb4+ {[%clk 0:00:02]} 51. Kd1 {[%clk 0:00:12]}  Nc5 {[%clk 0:00:02]} 52. Bd5 {[%clk 0:00:11]}  g5 {[%clk 0:00:02]} 53. Re7+ {[%clk 0:00:11]}  Kd4 {[%clk 0:00:03]} 54. Bg8 {[%clk 0:00:09]}  f4 {[%clk 0:00:03]} 55. gxf4 {[%clk 0:00:08]}  gxf4 {[%clk 0:00:04]} 56. h4 {[%clk 0:00:06]}  e3 {[%clk 0:00:04]} 57. fxe3+ {[%clk 0:00:06]}  fxe3 {[%clk 0:00:05]} 58. h5 {[%clk 0:00:05]}  Ne4 {[%clk 0:00:06]} 59. Rd7+ {[%clk 0:00:03]}  Kc3 {[%clk 0:00:06]} 60. Rxd3+ {[%clk 0:00:02]}  Kxd3 {[%clk 0:00:06]} 61. Bh7 {[%clk 0:00:00]}  e2+ {[%clk 0:00:07]} 0-1


[Site "https://www.chess.com"]

[Event "Titled Tuesday Blitz July 25 Early 2023"]
[White "Ambartsumova, Karina"]
[Black "Ruge, Edison"]
[WhiteFideId "4166299"]
[BlackFideId "4401000"]
[WhiteElo "2561"]
[BlackElo "2260"]
[Result "1-0"]
[Round "9"]
[TimeControl "180+2"]
[Date "2023.07.25"]
[WhiteClock "0:00:15"]
[BlackClock "0:00:00"]
[Board "81"]

1. c4 {[%clk 0:03:00]}  e5 {[%clk 0:02:59]} 2. Nc3 {[%clk 0:03:00]}  Nc6 {[%clk 0:03:00]} 3. Nf3 {[%clk 0:03:01]}  f5 {[%clk 0:02:58]} 4. d4 {[%clk 0:02:57]}  e4 {[%clk 0:02:58]} 5. Ng5 {[%clk 0:02:58]}  Nf6 {[%clk 0:02:55]} 6. g3 {[%clk 0:02:57]}  Bb4 {[%clk 0:02:51]} 7. Bg2 {[%clk 0:02:33]}  h6 {[%clk 0:02:50]} 8. Nh3 {[%clk 0:02:32]}  O-O {[%clk 0:02:43]} 9. Nf4 {[%clk 0:02:19]}  Bxc3+ {[%clk 0:02:43]} 10. bxc3 {[%clk 0:02:19]}  g5 {[%clk 0:02:42]} 11. Nd5 {[%clk 0:02:19]}  Ne7 {[%clk 0:02:38]} 12. Nxe7+ {[%clk 0:02:11]}  Qxe7 {[%clk 0:02:36]} 13. h4 {[%clk 0:02:11]}  Qg7 {[%clk 0:02:22]} 14. hxg5 {[%clk 0:01:54]}  hxg5 {[%clk 0:02:22]} 15. Ba3 {[%clk 0:01:55]}  d6 {[%clk 0:02:20]} 16. Qb3 {[%clk 0:01:55]}  Qf7 {[%clk 0:01:58]} 17. O-O-O {[%clk 0:01:50]}  Be6 {[%clk 0:01:56]} 18. d5 {[%clk 0:01:46]}  Bc8 {[%clk 0:01:48]} 19. Kb1 {[%clk 0:01:36]}  b6 {[%clk 0:01:45]} 20. Bc1 {[%clk 0:01:36]}  Qg7 {[%clk 0:01:43]} 21. f3 {[%clk 0:01:31]}  exf3 {[%clk 0:01:39]} 22. exf3 {[%clk 0:01:32]}  Bd7 {[%clk 0:01:38]} 23. Qc2 {[%clk 0:01:24]}  Rfe8 {[%clk 0:01:29]} 24. Qd2 {[%clk 0:01:21]}  Nh7 {[%clk 0:01:16]} 25. Rh5 {[%clk 0:01:20]}  Re7 {[%clk 0:00:58]} 26. Rdh1 {[%clk 0:01:18]}  f4 {[%clk 0:00:45]} 27. gxf4 {[%clk 0:00:57]}  Bf5+ {[%clk 0:00:40]} 28. Ka1 {[%clk 0:00:46]}  Rae8 {[%clk 0:00:35]} 29. Bf1 {[%clk 0:00:41]}  Re1 {[%clk 0:00:23]} 30. Bd3 {[%clk 0:00:38]}  Rxh1 {[%clk 0:00:16]} 31. Rxh1 {[%clk 0:00:39]}  Bxd3 {[%clk 0:00:08]} 32. Qxd3 {[%clk 0:00:39]}  gxf4 {[%clk 0:00:07]} 33. Bxf4 {[%clk 0:00:37]}  Nf6 {[%clk 0:00:06]} 34. Be3 {[%clk 0:00:30]}  Kf7 {[%clk 0:00:05]} 35. Bd4 {[%clk 0:00:22]}  Qg6 {[%clk 0:00:03]} 36. Qd2 {[%clk 0:00:20]}  Nh5 {[%clk 0:00:02]} 37. Rg1 {[%clk 0:00:19]}  Qf5 {[%clk 0:00:00]} 38. Qh6 {[%clk 0:00:15]} 1-0


[Site "https://www.chess.com"]

[Event "Titled Tuesday Blitz July 25 Early 2023"]
[White "Dehtiarov, Roman"]
[Black "Herzog2012"]
[WhiteFideId "14186640"]
[WhiteElo "2706"]
[BlackElo "2450"]
[Result "1-0"]
[Round "9"]
[TimeControl "180+2"]
[Date "2023.07.25"]
[WhiteClock "0:00:04"]
[BlackClock "0:00:00"]
[Board "82"]

1. c4 {[%clk 0:03:00]}  e5 {[%clk 0:02:57]} 2. g3 {[%clk 0:03:00]}  Nf6 {[%clk 0:02:56]} 3. Bg2 {[%clk 0:03:00]}  d5 {[%clk 0:02:56]} 4. cxd5 {[%clk 0:03:00]}  Nxd5 {[%clk 0:02:57]} 5. Nc3 {[%clk 0:03:00]}  Nb6 {[%clk 0:02:56]} 6. Nf3 {[%clk 0:02:59]}  Nc6 {[%clk 0:02:55]} 7. O-O {[%clk 0:02:58]}  Be7 {[%clk 0:02:52]} 8. a3 {[%clk 0:02:58]}  O-O {[%clk 0:02:53]} 9. b4 {[%clk 0:02:58]}  Be6 {[%clk 0:02:53]} 10. d3 {[%clk 0:02:56]}  f6 {[%clk 0:02:51]} 11. Be3 {[%clk 0:02:46]}  a5 {[%clk 0:02:44]} 12. b5 {[%clk 0:02:21]}  Nd4 {[%clk 0:02:44]} 13. Nd2 {[%clk 0:02:20]}  Nd5 {[%clk 0:02:28]} 14. Bxd4 {[%clk 0:01:59]}  exd4 {[%clk 0:02:27]} 15. Nxd5 {[%clk 0:01:59]}  Bxd5 {[%clk 0:02:26]} 16. Bxd5+ {[%clk 0:01:53]}  Qxd5 {[%clk 0:02:27]} 17. Qb3 {[%clk 0:01:52]}  Rfd8 {[%clk 0:01:44]} 18. Rfc1 {[%clk 0:01:50]}  Qxb3 {[%clk 0:01:31]} 19. Nxb3 {[%clk 0:01:51]}  a4 {[%clk 0:01:32]} 20. Nc5 {[%clk 0:01:14]}  Rd5 {[%clk 0:00:51]} 21. Nxb7 {[%clk 0:01:01]}  Rxb5 {[%clk 0:00:49]} 22. Rxc7 {[%clk 0:00:57]}  Bf8 {[%clk 0:00:48]} 23. Rd7 {[%clk 0:00:25]}  Rb3 {[%clk 0:00:08]} 24. Nd6 {[%clk 0:00:22]}  Ra6 {[%clk 0:00:06]} 25. Nc4 {[%clk 0:00:20]}  Bc5 {[%clk 0:00:06]} 26. Rd5 {[%clk 0:00:20]}  Rc6 {[%clk 0:00:05]} 27. Kg2 {[%clk 0:00:16]}  Kf7 {[%clk 0:00:05]} 28. Kf3 {[%clk 0:00:16]}  Ke6 {[%clk 0:00:05]} 29. Rd8 {[%clk 0:00:16]}  Be7 {[%clk 0:00:05]} 30. Rxd4 {[%clk 0:00:14]}  Rc7 {[%clk 0:00:04]} 31. Re4+ {[%clk 0:00:13]}  Kf7 {[%clk 0:00:04]} 32. Rd4 {[%clk 0:00:13]}  Rc5 {[%clk 0:00:03]} 33. Rd7 {[%clk 0:00:12]}  Ke6 {[%clk 0:00:03]} 34. Rd4 {[%clk 0:00:11]}  Rf5+ {[%clk 0:00:03]} 35. Kg2 {[%clk 0:00:09]}  Bc5 {[%clk 0:00:03]} 36. Re4+ {[%clk 0:00:09]}  Kf7 {[%clk 0:00:03]} 37. f4 {[%clk 0:00:08]}  g5 {[%clk 0:00:02]} 38. Kf3 {[%clk 0:00:05]}  gxf4 {[%clk 0:00:03]} 39. Rxf4 {[%clk 0:00:06]}  Rh5 {[%clk 0:00:03]} 40. Kg2 {[%clk 0:00:06]}  Rd5 {[%clk 0:00:03]} 41. Raf1 {[%clk 0:00:06]}  Bd4 {[%clk 0:00:01]} 42. Rf5 {[%clk 0:00:05]}  Rxf5 {[%clk 0:00:01]} 43. Rxf5 {[%clk 0:00:06]}  Bb2 {[%clk 0:00:02]} 44. Ra5 {[%clk 0:00:06]}  Bxa3 {[%clk 0:00:01]} 45. Rxa4 {[%clk 0:00:07]}  Be7 {[%clk 0:00:02]} 46. Ra7 {[%clk 0:00:07]}  Rc3 {[%clk 0:00:03]} 47. Kf3 {[%clk 0:00:07]}  Rc2 {[%clk 0:00:03]} 48. Nd6+ {[%clk 0:00:08]}  Ke6 {[%clk 0:00:03]} 49. Nc4 {[%clk 0:00:08]}  Rc1 {[%clk 0:00:03]} 50. Ra6+ {[%clk 0:00:07]}  Kf7 {[%clk 0:00:03]} 51. g4 {[%clk 0:00:08]}  Rf1+ {[%clk 0:00:03]} 52. Kg2 {[%clk 0:00:08]}  Re1 {[%clk 0:00:03]} 53. Kf2 {[%clk 0:00:08]}  Rh1 {[%clk 0:00:02]} 54. Kg2 {[%clk 0:00:05]}  Re1 {[%clk 0:00:02]} 55. e4 {[%clk 0:00:05]}  Re2+ {[%clk 0:00:01]} 56. Kf3 {[%clk 0:00:05]}  Bd8 {[%clk 0:00:00]} 57. Kxe2 {[%clk 0:00:04]} 1-0


[Site "https://www.chess.com"]

[Event "Titled Tuesday Blitz July 25 Early 2023"]
[White "Goryachkina, Aleksandra"]
[Black "Bendayan Claros, Aaron"]
[WhiteFideId "4147103"]
[BlackFideId "3803392"]
[WhiteElo "2618"]
[BlackElo "2441"]
[Result "1-0"]
[Round "9"]
[TimeControl "180+2"]
[Date "2023.07.25"]
[WhiteClock "0:00:56"]
[BlackClock "0:00:00"]
[Board "85"]

1. e4 {[%clk 0:02:59]}  c6 {[%clk 0:02:59]} 2. d4 {[%clk 0:02:58]}  d5 {[%clk 0:03:00]} 3. exd5 {[%clk 0:02:59]}  cxd5 {[%clk 0:03:00]} 4. Bd3 {[%clk 0:02:59]}  Nf6 {[%clk 0:03:01]} 5. h3 {[%clk 0:02:58]}  Nc6 {[%clk 0:03:01]} 6. c3 {[%clk 0:02:58]}  g6 {[%clk 0:03:02]} 7. Nf3 {[%clk 0:02:57]}  Bg7 {[%clk 0:03:02]} 8. Bf4 {[%clk 0:02:55]}  O-O {[%clk 0:03:02]} 9. O-O {[%clk 0:02:55]}  Bf5 {[%clk 0:03:02]} 10. Be2 {[%clk 0:02:53]}  Re8 {[%clk 0:02:55]} 11. Nbd2 {[%clk 0:02:50]}  Ne4 {[%clk 0:02:50]} 12. Re1 {[%clk 0:02:44]}  Qb6 {[%clk 0:02:36]} 13. Qb3 {[%clk 0:02:28]}  Qxb3 {[%clk 0:02:19]} 14. axb3 {[%clk 0:02:28]}  a6 {[%clk 0:02:06]} 15. b4 {[%clk 0:02:27]}  f6 {[%clk 0:02:03]} 16. Bh2 {[%clk 0:02:23]}  Nxd2 {[%clk 0:01:55]} 17. Nxd2 {[%clk 0:02:23]}  e5 {[%clk 0:01:55]} 18. dxe5 {[%clk 0:02:09]}  fxe5 {[%clk 0:01:56]} 19. b5 {[%clk 0:02:04]}  axb5 {[%clk 0:01:54]} 20. Rxa8 {[%clk 0:02:04]}  Rxa8 {[%clk 0:01:53]} 21. Bxb5 {[%clk 0:02:04]}  Ra2 {[%clk 0:01:49]} 22. Bxc6 {[%clk 0:01:33]}  bxc6 {[%clk 0:01:50]} 23. Bxe5 {[%clk 0:01:33]}  Bxe5 {[%clk 0:01:26]} 24. Rxe5 {[%clk 0:01:34]}  Rxb2 {[%clk 0:01:26]} 25. Nf3 {[%clk 0:01:33]}  Rc2 {[%clk 0:01:19]} 26. Re3 {[%clk 0:01:33]}  c5 {[%clk 0:01:03]} 27. g4 {[%clk 0:01:32]}  Be4 {[%clk 0:01:03]} 28. Ng5 {[%clk 0:01:32]}  Rc1+ {[%clk 0:00:42]} 29. Kh2 {[%clk 0:01:32]}  Bb1 {[%clk 0:00:34]} 30. Ne6 {[%clk 0:01:24]}  d4 {[%clk 0:00:16]} 31. cxd4 {[%clk 0:01:19]}  cxd4 {[%clk 0:00:17]} 32. Nxd4 {[%clk 0:01:19]}  Ba2 {[%clk 0:00:15]} 33. Kg3 {[%clk 0:01:14]}  Bd5 {[%clk 0:00:15]} 34. Kf4 {[%clk 0:01:12]}  Rh1 {[%clk 0:00:14]} 35. Ke5 {[%clk 0:01:11]}  Ba2 {[%clk 0:00:13]} 36. Kf6 {[%clk 0:01:11]}  Bf7 {[%clk 0:00:11]} 37. Ra3 {[%clk 0:01:08]}  Re1 {[%clk 0:00:10]} 38. Ra7 {[%clk 0:00:58]}  Bd5 {[%clk 0:00:00]} 39. Rd7 {[%clk 0:00:56]} 1-0


[Site "https://www.chess.com"]

[Event "Titled Tuesday Blitz July 25 Early 2023"]
[White "Veiga, Jose Francisco R P Neves"]
[Black "Rangel, Daniel"]
[WhiteFideId "1930087"]
[BlackFideId "2124475"]
[WhiteElo "2583"]
[BlackElo "2434"]
[Result "0-1"]
[Round "9"]
[TimeControl "180+2"]
[Date "2023.07.25"]
[WhiteClock "0:00:13"]
[BlackClock "0:00:12"]
[Board "88"]

1. c4 {[%clk 0:03:00]}  Nf6 {[%clk 0:02:59]} 2. Nc3 {[%clk 0:03:01]}  e6 {[%clk 0:02:59]} 3. e4 {[%clk 0:03:01]}  d6 {[%clk 0:02:54]} 4. d4 {[%clk 0:03:00]}  Nbd7 {[%clk 0:02:52]} 5. Nf3 {[%clk 0:03:00]}  c5 {[%clk 0:02:50]} 6. Be2 {[%clk 0:02:58]}  cxd4 {[%clk 0:02:49]} 7. Qxd4 {[%clk 0:02:59]}  a6 {[%clk 0:02:49]} 8. O-O {[%clk 0:02:58]}  Be7 {[%clk 0:02:49]} 9. b3 {[%clk 0:02:57]}  O-O {[%clk 0:02:47]} 10. Bb2 {[%clk 0:02:57]}  Qc7 {[%clk 0:02:46]} 11. Rac1 {[%clk 0:02:57]}  b6 {[%clk 0:02:45]} 12. Rfe1 {[%clk 0:02:52]}  Bb7 {[%clk 0:02:45]} 13. Bf1 {[%clk 0:02:52]}  Rfe8 {[%clk 0:02:42]} 14. h3 {[%clk 0:02:44]}  Bf8 {[%clk 0:02:42]} 15. Qe3 {[%clk 0:02:38]}  g6 {[%clk 0:02:38]} 16. Rcd1 {[%clk 0:02:29]}  Ne5 {[%clk 0:02:14]} 17. Na4 {[%clk 0:02:26]}  Nxf3+ {[%clk 0:01:47]} 18. Qxf3 {[%clk 0:02:26]}  Nd7 {[%clk 0:01:48]} 19. Qg3 {[%clk 0:02:20]}  Nc5 {[%clk 0:01:31]} 20. Nxc5 {[%clk 0:02:18]}  bxc5 {[%clk 0:01:29]} 21. e5 {[%clk 0:02:17]}  d5 {[%clk 0:01:25]} 22. cxd5 {[%clk 0:02:18]}  Bxd5 {[%clk 0:01:25]} 23. Rc1 {[%clk 0:02:16]}  Qb7 {[%clk 0:01:20]} 24. Bc4 {[%clk 0:02:16]}  Red8 {[%clk 0:01:15]} 25. Qg4 {[%clk 0:02:15]}  h5 {[%clk 0:01:10]} 26. Qg5 {[%clk 0:02:12]}  a5 {[%clk 0:01:04]} 27. Red1 {[%clk 0:02:10]}  Kh7 {[%clk 0:00:51]} 28. Qf6 {[%clk 0:01:51]}  Bg7 {[%clk 0:00:45]} 29. Bxd5 {[%clk 0:01:52]}  Rxd5 {[%clk 0:00:42]} 30. Qf3 {[%clk 0:01:52]}  Rad8 {[%clk 0:00:37]} 31. Rxd5 {[%clk 0:01:52]}  Qxd5 {[%clk 0:00:30]} 32. Qxf7 {[%clk 0:01:47]}  Rf8 {[%clk 0:00:23]} 33. Qc7 {[%clk 0:01:24]}  Qd2 {[%clk 0:00:23]} 34. Qxc5 {[%clk 0:01:24]}  Qxb2 {[%clk 0:00:22]} 35. Re1 {[%clk 0:01:12]}  Qd2 {[%clk 0:00:16]} 36. Rf1 {[%clk 0:01:03]}  Rf5 {[%clk 0:00:16]} 37. g3 {[%clk 0:00:42]}  Bxe5 {[%clk 0:00:13]} 38. Qe7+ {[%clk 0:00:37]}  Bg7 {[%clk 0:00:13]} 39. Qxe6 {[%clk 0:00:38]}  Bd4 {[%clk 0:00:12]} 40. Qd7+ {[%clk 0:00:37]}  Kh6 {[%clk 0:00:12]} 41. Qe7 {[%clk 0:00:16]}  Rxf2 {[%clk 0:00:11]} 42. Rxf2 {[%clk 0:00:13]}  Qxf2+ {[%clk 0:00:12]} 0-1


[Site "https://www.chess.com"]

[Event "Titled Tuesday Blitz July 25 Early 2023"]
[White "Nayak Rajesh"]
[Black "Turzo, Attila"]
[WhiteFideId "35017152"]
[BlackFideId "704954"]
[WhiteElo "2368"]
[BlackElo "2506"]
[Result "0-1"]
[Round "9"]
[TimeControl "180+2"]
[Date "2023.07.25"]
[WhiteClock "0:00:00"]
[BlackClock "0:02:06"]
[Board "97"]

1. e4 {[%clk 0:02:56]}  d6 {[%clk 0:03:00]} 2. d4 {[%clk 0:02:48]}  Nf6 {[%clk 0:03:00]} 3. Nc3 {[%clk 0:02:46]}  g6 {[%clk 0:03:01]} 4. Bf4 {[%clk 0:02:45]}  c6 {[%clk 0:02:57]} 5. Qd2 {[%clk 0:02:44]}  b5 {[%clk 0:02:56]} 6. O-O-O {[%clk 0:02:25]}  b4 {[%clk 0:02:55]} 7. Nb1 {[%clk 0:02:21]}  Nxe4 {[%clk 0:02:55]} 8. Qe1 {[%clk 0:02:19]}  Nf6 {[%clk 0:02:51]} 9. h4 {[%clk 0:02:16]}  Nd5 {[%clk 0:02:45]} 10. Bd2 {[%clk 0:02:13]}  h5 {[%clk 0:02:39]} 11. Nf3 {[%clk 0:02:08]}  a5 {[%clk 0:02:39]} 12. Ng5 {[%clk 0:02:07]}  Bg7 {[%clk 0:02:37]} 13. Bc4 {[%clk 0:02:06]}  Nd7 {[%clk 0:02:34]} 14. f3 {[%clk 0:01:33]}  N7b6 {[%clk 0:02:33]} 15. Bd3 {[%clk 0:01:32]}  Bxd4 {[%clk 0:02:27]} 16. g4 {[%clk 0:01:24]}  Na4 {[%clk 0:02:11]} 17. c3 {[%clk 0:01:08]}  bxc3 {[%clk 0:02:10]} 18. bxc3 {[%clk 0:00:00]}  Qb6 {[%clk 0:02:06]} 0-1


[Site "https://www.chess.com"]

[Event "Titled Tuesday Blitz July 25 Early 2023"]
[White "Dwilewicz, Katarzyna"]
[Black "Kuznetsova, Olga"]
[WhiteFideId "1148486"]
[BlackFideId "4191323"]
[WhiteElo "2365"]
[BlackElo "2505"]
[Result "1-0"]
[Round "9"]
[TimeControl "180+2"]
[Date "2023.07.25"]
[WhiteClock "0:02:49"]
[BlackClock "0:02:15"]
[Board "98"]

1. e4 {[%clk 0:03:00]}  e5 {[%clk 0:02:50]} 2. Nf3 {[%clk 0:03:00]}  Nf6 {[%clk 0:02:50]} 3. Nc3 {[%clk 0:02:59]}  Nc6 {[%clk 0:02:50]} 4. d4 {[%clk 0:02:59]}  exd4 {[%clk 0:02:44]} 5. Nxd4 {[%clk 0:03:00]}  Nxe4 {[%clk 0:02:44]} 6. Nxe4 {[%clk 0:02:59]}  Qe7 {[%clk 0:02:44]} 7. Nxc6 {[%clk 0:02:56]}  Qxe4+ {[%clk 0:02:43]} 8. Be2 {[%clk 0:02:56]}  Qxc6 {[%clk 0:02:41]} 9. O-O {[%clk 0:02:56]}  Be7 {[%clk 0:02:41]} 10. Bf3 {[%clk 0:02:51]}  O-O {[%clk 0:02:15]} 11. Bxc6 {[%clk 0:02:49]} 1-0


[Site "https://www.chess.com"]